bitfinex-derivatives/quotes_SOLF0:USTF0_20260218
["timestamp","ask_amount","ask_price","bid_price","bid_amount"]
[1771427042207,3.78233008,82.859,82.794,0.7716281]
[1771427042403,3.78233008,82.859,82.781,10.8758]
[1771427042711,3.78233008,82.859,82.791,0.7716281]
[1771427043112,3.78233008,82.859,82.805,10.8726]
[1771427044209,3.78233008,82.896,82.811,0.81192205]
[1771427044913,10.8617,82.889,82.83,7.2135445]
[1771427045105,3.78233008,82.915,82.831,0.95926413]
[1771427045712,3.78233008,82.908,82.855,10.866]
[1771427046618,3.78233008,82.905,82.844,10.8674]
[1771427047718,10.8608,82.896,82.844,10.8674]
[1771427047912,3.78233008,82.895,82.83,6.25428037]
[1771427048111,3.78233008,82.889,82.81,6.25428037]
[1771427048308,10.8657,82.859,82.81,6.25428037]
[1771427049020,3.78233008,82.869,82.784,76.02]
[1771427049021,10.8669,82.849,82.79,6.25428037]
[1771427049317,3.78233008,82.869,82.79,6.25428037]
[1771427049515,3.78233008,82.848,82.794,10.8741]
[1771427049712,3.78233008,82.848,82.77,7.16211249]
[1771427050314,6.25428037,82.85,82.77,7.16211249]
[1771427050315,3.78233008,82.833,82.777,10.8763]
[1771427050822,3.78233008,82.829,82.766,10.8778]
[1771427051713,10.8709,82.819,82.766,10.8778]
[1771427051909,3.78233008,82.809,82.756,10.879]
[1771427052115,3.78233008,82.809,82.733,0.90317338]
[1771427052418,10.8708,82.82,82.762,10.8783]
[1771427052619,3.78233008,82.819,82.762,10.8783]
[1771427053721,3.78233008,82.814,82.754,10.8793]
[1771427053922,6.25428037,82.85,82.714,21.769]
[1771427053923,3.78233008,82.809,82.733,0.86330003]
[1771427054119,6.25428037,82.81,82.733,0.86330003]
[1771427054427,3.78233008,82.828,82.776,10.8764]
[1771427054922,4.04383603,82.847,82.771,0.88998747]
[1771427055124,4.04383603,82.829,82.771,0.88998747]
[1771427055324,10.8698,82.827,82.775,10.8765]
[1771427055521,4.04383603,82.826,82.753,0.88998747]
[1771427056115,4.04383603,82.826,82.761,0.89043394]
[1771427056519,4.04383603,82.826,82.776,10.8764]
[1771427057025,4.04383603,82.849,82.761,0.89043394]
[1771427057219,10.8681,82.84,82.783,10.8754]
[1771427057414,4.04383603,82.849,82.78,0.84419466]
[1771427057625,4.04383603,82.885,82.811,0.84419466]
[1771427058423,6.25428037,82.9,82.784,76.04]
[1771427058424,4.04383603,82.869,82.79,7.09847503]
[1771427058619,4.04383603,82.869,82.791,0.84419466]
[1771427058821,10.8675,82.853,82.791,0.84419466]
[1771427059331,4.04383603,82.869,82.81,6.25428037]
[1771427059523,10.8662,82.863,82.813,10.8726]
[1771427060026,4.04383603,82.856,82.788,0.81433764]
[1771427060219,4.04383603,82.856,82.78,6.25428037]
[1771427060524,4.04383603,82.849,82.78,6.25428037]
[1771427060924,4.04383603,82.849,82.769,0.81433764]
[1771427061127,10.8735,82.807,82.76,6.25428037]
[1771427061424,4.04383603,82.827,82.76,6.25428037]
[1771427062026,10.8714,82.823,82.775,10.8776]
[1771427062431,4.04383603,82.827,82.76,7.06087698]
[1771427062631,10.8725,82.815,82.767,10.8787]
[1771427063629,76.04,82.853,82.76,7.06087698]
[1771427063630,4.04383603,82.839,82.761,0.83545114]
[1771427064126,10.8709,82.827,82.777,10.8774]
[1771427064332,10.8709,82.827,82.761,0.83545114]
[1771427065932,10.8718,82.82,82.761,0.83545114]
[1771427066238,4.04383603,82.839,82.775,10.8776]
[1771427066523,14.91443603,82.829,82.775,10.8776]
[1771427067123,9.75077821,82.857,82.761,0.83545114]
[1771427067318,9.75077821,82.857,82.76,6.25428037]
[1771427067319,6.25428037,82.89,82.801,3.79299417]
[1771427067522,6.25428037,82.91,82.821,3.79299417]
[1771427067719,6.25428037,82.91,82.841,3.79299417]
[1771427067924,6.25428037,82.93,82.86,6.25428037]
[1771427068524,76.04,82.935,82.86,6.25428037]
[1771427068718,9.74265653,82.934,82.86,6.25428037]
[1771427068919,6.25428037,82.95,82.86,6.25428037]
[1771427068920,76.04,82.938,82.869,10.8653]
[1771427069131,4.04383603,82.937,82.869,10.8653]
[1771427069326,10.8604,82.907,82.86,17.12078037]
[1771427069532,4.04383603,82.948,82.88,6.25428037]
[1771427070228,4.04383603,82.948,82.875,10.8646]
[1771427070229,4.04383603,82.946,82.86,10.04727454]
[1771427070526,4.04383603,82.944,82.86,10.04727454]
[1771427070726,4.04383603,82.942,82.86,6.25428037]
[1771427070931,4.04383603,82.94,82.86,6.25428037]
[1771427071129,4.04383603,82.929,82.86,6.25428037]
[1771427071321,6.25428037,82.93,82.86,6.25428037]
[1771427071322,10.8612,82.901,82.86,6.25428037]
[1771427071525,4.04383603,82.911,82.86,6.25428037]
[1771427072128,10.86,82.91,82.86,6.25428037]
[1771427072632,4.04383603,82.941,82.88,6.25428037]
[1771427073027,10.8572,82.932,82.88,6.25428037]
[1771427073525,4.04383603,82.941,82.88,6.25428037]
[1771427074130,4.04383603,82.941,82.885,10.8631]
[1771427074531,4.04383603,82.941,82.88,6.25428037]
[1771427074729,4.04383603,82.961,82.881,3.79299417]
[1771427074924,4.04383603,82.959,82.881,3.79299417]
[1771427075130,76.0,82.958,82.881,3.79299417]
[1771427075329,4.04383603,82.957,82.881,3.79299417]
[1771427076339,4.04383603,82.978,82.906,3.79299417]
[1771427076736,76.0,82.977,82.906,3.79299417]
[1771427076931,4.04383603,82.967,82.908,10.8602]
[1771427077131,4.04383603,82.967,82.9,6.25428037]
[1771427077332,4.04383603,82.965,82.9,6.25428037]
[1771427077531,4.04383603,82.957,82.9,6.25428037]
[1771427077736,4.04383603,82.957,82.886,3.79299417]
[1771427077936,4.04383603,82.957,82.89,10.02318959]
[1771427078433,4.04383603,82.939,82.841,3.79299417]
[1771427078744,4.04383603,82.886,82.801,3.79299417]
[1771427078939,168.8943,82.93,82.757,169.245]
[1771427078940,11.17145385,82.916,82.821,3.79299417]
[1771427079236,10.8608,82.905,82.841,3.79299417]
[1771427081647,75.98,82.922,82.841,3.79299417]
[1771427081648,75.98,82.932,82.841,3.79299417]
[1771427081935,4.04383603,82.929,82.841,3.79299417]
[1771427082143,4.04383603,82.927,82.841,3.79299417]
[1771427082328,4.04383603,82.919,82.841,3.79299417]
[1771427082940,4.04383603,82.968,82.881,3.79299417]
[1771427083130,4.04383603,82.965,82.89,6.23019542]
[1771427083331,4.04383603,82.963,82.89,6.23019542]
[1771427083531,4.04383603,82.949,82.87,6.23019542]
[1771427083738,75.98,82.948,82.87,6.23019542]
[1771427083939,4.04383603,82.946,82.87,6.23019542]
[1771427084139,10.8567,82.936,82.87,6.23019542]
[1771427084346,4.04383603,82.946,82.871,3.79299417]
[1771427084843,4.04383603,82.944,82.871,3.79299417]
[1771427085044,10.8557,82.943,82.872,3.80438709]
[1771427085344,3.97949749,82.942,82.872,3.80438709]
[1771427086043,3.97949749,82.942,82.873,3.80438709]
[1771427087042,3.97949749,82.942,82.85,6.23019542]
[1771427087250,3.97949749,82.927,82.851,3.80438709]
[1771427087445,3.97949749,82.927,82.848,10.868]
[1771427087754,3.97949749,82.925,82.848,10.868]
[1771427088044,3.97949749,82.924,82.838,3.80438709]
[1771427088450,3.97949749,82.909,82.838,3.80438709]
[1771427088643,3.97949749,82.909,82.84,3.80438709]
[1771427088837,6.23019542,82.95,82.841,3.80438709]
[1771427088838,3.97949749,82.928,82.841,3.80438709]
[1771427089045,3.97949749,82.909,82.841,3.80438709]
[1771427089351,10.8603,82.908,82.841,3.80438709]
[1771427089742,14.83979749,82.908,82.841,3.80438709]
[1771427089948,14.84059749,82.902,82.841,3.80438709]
[1771427090345,14.84059749,82.902,82.841,14.67338709]
[1771427090647,3.97949749,82.901,82.841,14.67338709]
[1771427091049,3.97949749,82.887,82.82,10.8717]
[1771427091350,3.97949749,82.887,82.801,3.80438709]
[1771427092052,3.97949749,82.94,82.82,3.80438709]
[1771427092255,3.97949749,82.916,82.821,3.80438709]
[1771427092551,3.97949749,82.914,82.821,3.80438709]
[1771427093352,3.97949749,82.914,82.856,10.867]
[1771427093554,75.98,82.913,82.856,10.867]
[1771427093744,79.95949749,82.912,82.856,10.867]
[1771427093943,3.97949749,82.911,82.856,10.867]
[1771427094146,3.97949749,82.911,82.844,3.80438709]
[1771427094652,79.95949749,82.911,82.844,3.80438709]
[1771427095051,79.95949749,82.911,82.854,10.8673]
[1771427095052,10.8603,82.908,82.854,10.8673]
[1771427095248,3.97949749,82.899,82.8,3.80438709]
[1771427095456,6.23019542,82.9,82.821,3.80438709]
[1771427096050,27.93989542,82.95,82.8,6.23019542]
[1771427096051,3.97949749,82.949,82.879,3.80438709]
[1771427096256,3.97949749,82.949,82.832,169.0922]
[1771427096257,3.97949749,82.929,82.859,3.80438709]
[1771427096454,75.98,82.939,82.859,3.80438709]
[1771427096649,6.23019542,82.94,82.883,10.8634]
[1771427097052,3.97949749,82.939,82.883,10.8634]
[1771427098454,3.94126748,82.937,82.873,10.8648]
[1771427099455,75.98,82.936,82.873,10.8648]
[1771427099655,10.8567,82.935,82.873,10.8648]
[1771427100051,3.94126748,82.949,82.874,4.0408855]
[1771427100351,10.1714629,82.94,82.874,4.0408855]
[1771427100549,3.94126748,82.939,82.874,4.0408855]
[1771427100953,3.94126748,82.962,82.874,4.0408855]
[1771427101150,3.94126748,82.959,82.873,4.0408855]
[1771427101351,10.1714629,82.94,82.873,4.0408855]
[1771427101550,3.94126748,82.939,82.873,4.0408855]
[1771427101856,3.94126748,82.937,82.873,4.0408855]
[1771427102256,3.94126748,82.937,82.885,10.8632]
[1771427102650,3.94126748,82.937,82.873,4.0408855]
[1771427102846,6.23019542,82.91,82.823,4.0408855]
[1771427103047,3.94126748,82.909,82.823,4.0408855]
[1771427103258,3.94126748,82.907,82.823,4.0408855]
[1771427103651,6.23019542,82.91,82.796,21.7499]
[1771427103652,6.23019542,82.91,82.84,4.0408855]
[1771427105351,3.94126748,82.939,82.873,4.0408855]
[1771427105551,3.94126748,82.939,82.815,169.1269]
[1771427105552,3.94126748,82.964,82.881,4.0408855]
[1771427105755,10.8535,82.96,82.905,10.8606]
[1771427106152,3.94126748,82.949,82.881,4.0408855]
[1771427106354,3.94126748,82.946,82.886,10.863]
[1771427106657,3.94126748,82.944,82.881,4.0408855]
[1771427106857,10.8557,82.943,82.883,10.8634]
[1771427107358,14.79696748,82.943,82.883,10.8634]
[1771427107661,10.8561,82.94,82.883,10.8634]
[1771427108259,3.94126748,82.929,82.875,10.8646]
[1771427108458,14.9272661,82.979,82.874,169.0054]
[1771427108658,23.52187226,83.01,82.93,6.23019542]
[1771427109157,29.75206768,83.01,82.939,10.8561]
[1771427109356,23.52187226,83.01,82.92,6.23019542]
[1771427109953,23.52187226,83.01,82.921,75.96]
[1771427110158,23.52187226,83.01,82.93,6.23019542]
[1771427110959,2.0968845,83.062,82.937,36.32]
[1771427111169,33.51371792,83.037,82.95,6.23019542]
[1771427111462,33.51371792,83.019,82.94,6.23019542]
[1771427111858,33.51371792,83.039,82.99,10.8494]
[1771427112060,6.23019542,83.05,82.96,6.23019542]
[1771427112258,39.74391334,83.05,82.96,6.23019542]
[1771427112457,39.74391334,83.05,82.96,17.08349542]
[1771427112660,33.51371792,83.049,82.96,17.08349542]
[1771427113261,33.51371792,83.049,82.975,10.8514]
[1771427113454,10.8419,83.048,82.96,6.23019542]
[1771427113656,33.65767293,83.029,82.96,6.23019542]
[1771427113861,33.65767293,83.029,82.963,10.853]
[1771427114463,33.67535509,83.048,82.963,10.853]
[1771427114658,33.67535509,83.047,82.963,10.853]
[1771427114863,33.67535509,83.047,82.975,10.8514]
[1771427115461,33.67535509,83.047,82.962,10.8531]
[1771427115871,75.94,83.046,82.962,10.8531]
[1771427116061,33.67040191,83.045,82.962,10.8531]
[1771427116262,33.67040191,83.029,82.95,10.8547]
[1771427116463,33.67040191,83.019,82.95,10.8547]
[1771427116662,33.67040191,83.019,82.92,6.23019542]
[1771427116663,10.8475,83.006,82.92,6.23019542]
[1771427116869,33.68702613,82.999,82.938,10.8563]
[1771427117556,10.8488,82.996,82.922,10.8584]
[1771427117762,39.9270928,82.99,82.922,10.8584]
[1771427117957,75.92,82.989,82.9,6.23019542]
[1771427118157,33.69689738,82.988,82.936,10.8566]
[1771427119466,33.69689738,82.988,82.92,6.23019542]
[1771427119467,33.69689738,82.988,82.925,10.858]
[1771427119665,33.69689738,82.988,82.9,6.23019542]
[1771427119964,33.71217956,82.986,82.92,6.23019542]
[1771427120363,33.71217956,82.986,82.892,12.08]
[1771427120564,33.71217956,82.986,82.91,6.23019542]
[1771427121275,33.71217956,82.986,82.88,321.83355642]
[1771427121470,6.23019542,82.99,82.88,321.83355642]
[1771427121471,33.70936984,82.984,82.9,6.23019542]
[1771427121774,33.71861725,82.982,82.89,6.23019542]
[1771427121962,33.71861725,82.982,82.91,6.23019542]
[1771427123164,44.56931725,82.982,82.91,6.23019542]
[1771427123367,6.23019542,82.99,82.91,6.23019542]
[1771427123368,33.7270993,82.981,82.91,6.23019542]
[1771427124572,10.8512,82.978,82.91,17.09009542]
[1771427124768,33.74427542,82.999,82.93,6.23019542]
[1771427125373,33.74427542,82.996,82.934,10.8567]
[1771427125577,33.74427542,82.996,82.93,6.23019542]
[1771427125967,33.74427542,82.996,82.92,6.23019542]
[1771427126676,33.74427542,82.996,82.939,10.8562]
[1771427127270,33.74427542,82.996,82.901,36.32]
[1771427127475,33.76149378,82.994,82.93,17.08749542]
[1771427127673,33.76149378,82.994,82.93,6.23019542]
[1771427128276,33.76149378,82.994,82.946,10.8552]
[1771427128580,33.76149378,82.994,82.93,6.23019542]
[1771427129181,33.76149378,82.994,82.945,10.8553]
[1771427130082,33.76149378,82.994,82.91,6.23019542]
[1771427130482,6.23019542,83.01,82.91,6.23019542]
[1771427130483,33.78924808,82.993,82.91,6.23019542]
[1771427131188,10.8512,82.978,82.927,10.8577]
[1771427131380,33.7852746,82.977,82.91,6.23019542]
[1771427131785,33.79341624,82.974,82.916,10.8591]
[1771427131985,33.79341624,82.974,82.91,6.23019542]
[1771427132485,33.79341624,82.969,82.881,36.32]
[1771427132679,33.79913317,82.949,82.821,169.1152]
[1771427132979,33.79913317,82.942,82.873,10.8648]
[1771427133784,33.80707371,82.939,82.795,169.1671]
[1771427134085,33.80707371,82.919,82.84,6.23019542]
[1771427134781,33.80707371,82.919,82.843,10.8687]
[1771427135387,33.77592406,82.916,82.843,10.8687]
[1771427135986,33.77592406,82.916,82.86,6.23019542]
[1771427136782,33.77592406,82.916,82.862,10.8663]
[1771427140894,33.77592406,82.916,82.871,10.865]
[1771427143390,33.77592406,82.916,82.879,10.864]
[1771427144197,10.8546,82.952,82.88,6.23509248]
[1771427144398,86.7946,82.952,82.88,6.23509248]
[1771427145003,10.8556,82.944,82.88,6.23509248]
[1771427146104,24.49652576,82.943,82.88,6.23509248]
[1771427146301,24.49652576,82.943,82.9,10.8612]
[1771427147402,0.94242576,82.943,82.9,6.23509248]
[1771427147609,2.576e-05,82.943,82.9,6.23509248]
[1771427147910,2.576e-05,82.943,82.922,10.8584]
[1771427148302,2.576e-05,82.943,82.9,6.23509248]
[1771427148504,2.576e-05,82.943,82.913,10.8595]
[1771427148705,6.23509248,83.01,82.92,6.23509248]
[1771427148998,75.96,83.009,82.94,6.23509248]
[1771427149202,10.8471,83.009,82.963,10.853]
[1771427149406,75.96,83.008,82.94,6.23509248]
[1771427149606,88.25280464,83.007,82.94,6.23509248]
[1771427149906,12.30193554,82.994,82.94,6.23509248]
[1771427150110,12.30193554,82.992,82.92,6.23509248]
[1771427150604,12.30193554,82.99,82.92,6.23509248]
[1771427151207,12.35411552,82.969,82.92,6.23509248]
[1771427151810,12.3634191,83.01,82.94,6.23509248]
[1771427152309,12.3634191,82.992,82.94,6.23509248]
[1771427153307,12.3634191,82.992,82.951,10.8545]
[1771427153507,12.3634191,82.992,82.94,6.23509248]
[1771427153712,9.11552537,82.99,82.92,6.23509248]
[1771427153906,9.11960761,82.988,82.92,6.23509248]
[1771427154307,9.11960761,82.972,82.926,10.8578]
[1771427154511,9.11960761,82.972,82.92,6.23509248]
[1771427155411,9.15584937,82.968,82.92,6.23509248]
[1771427155613,9.15584937,82.968,82.9,6.23509248]
[1771427155804,9.15996144,82.966,82.9,6.23509248]
[1771427156203,9.15996144,82.956,82.847,14.69357202]
[1771427156404,9.15996144,82.954,82.87,6.23509248]
[1771427156716,9.19847837,82.932,82.87,6.23509248]
[1771427157410,9.19847837,82.932,82.895,10.8619]
[1771427157916,9.20262418,82.951,82.903,10.8609]
[1771427158117,9.20262418,82.951,82.89,6.23509248]
[1771427158718,9.20262418,82.951,82.91,10.86]
[1771427159318,9.20262418,82.951,82.89,6.23509248]
[1771427160812,9.2427812,82.949,82.89,6.23509248]
[1771427161418,9.2427812,82.949,82.891,10.8624]
[1771427162321,9.24806754,82.938,82.882,10.8636]
[1771427162812,9.25255285,82.936,82.89,10.8626]
[1771427163017,9.25255285,82.936,82.87,6.23509248]
[1771427163417,9.25255285,82.934,82.889,10.8626]
[1771427163717,9.25255285,82.934,82.87,6.23509248]
[1771427165311,9.24436341,82.907,82.84,450.0657244]
[1771427165712,9.24932915,82.899,82.84,443.83063192]
[1771427165921,9.24932915,82.899,82.83,6.23509248]
[1771427166123,9.24932915,82.889,82.81,6.23509248]
[1771427166416,9.24932915,82.869,82.825,10.8711]
[1771427166613,9.24932915,82.869,82.8,6.23509248]
[1771427166809,9.24932915,82.869,82.78,6.23509248]
[1771427167009,9.20560756,82.867,82.78,6.23509248]
[1771427167215,9.20560756,82.844,82.78,6.23509248]
[1771427167415,9.20560756,82.869,82.8,6.23509248]
[1771427168418,9.21025898,82.867,82.8,6.23509248]
[1771427168616,9.21025898,82.859,82.808,10.8733]
[1771427168817,9.21025898,82.859,82.8,6.23509248]
[1771427169011,9.14984413,82.846,82.78,6.23509248]
[1771427169617,9.14984413,82.862,82.807,10.8734]
[1771427170012,9.14984413,82.862,82.78,6.23509248]
[1771427170212,9.15412901,82.851,82.797,10.8748]
[1771427170719,9.15412901,82.851,82.78,6.23509248]
[1771427170917,9.16924308,82.849,82.77,6.23509248]
[1771427171320,9.16924308,82.849,82.78,6.23509248]
[1771427171519,9.16924308,82.865,82.78,6.23509248]
[1771427171917,9.17347232,82.844,82.786,10.8762]
[1771427172124,9.17347232,82.844,82.78,6.23509248]
[1771427172717,9.17347232,82.844,82.795,10.8751]
[1771427173019,9.17347232,82.844,82.76,6.23509248]
[1771427173221,9.17347232,82.844,82.792,10.8754]
[1771427174421,9.21766348,82.843,82.76,6.23509248]
[1771427174626,9.21766348,82.829,82.759,440.88745418]
[1771427174815,9.21852239,82.827,82.759,440.88745418]
[1771427175015,9.21852239,82.827,82.771,10.8782]
[1771427175219,6.23509248,82.82,82.76,6.23509248]
[1771427175413,6.23509248,82.82,82.759,440.88745418]
[1771427175414,9.21852239,82.815,82.759,440.88745418]
[1771427175815,6.23509248,82.85,82.72,6.23509248]
[1771427175816,9.22771861,82.799,82.72,6.23509248]
[1771427176621,9.22771861,82.797,82.72,6.23509248]
[1771427177022,20.10413915,82.788,82.72,6.23509248]
[1771427177422,20.10413915,82.788,82.651,12.08]
[1771427177423,9.22803915,82.779,82.7,6.23509248]
[1771427177624,9.22803915,82.779,82.72,6.23509248]
[1771427178018,9.22803915,82.779,82.7,6.23509248]
[1771427178624,9.22803915,82.779,82.725,10.8843]
[1771427179226,9.22803915,82.779,82.734,10.8831]
[1771427179427,9.10186631,82.799,82.72,6.23509248]
[1771427179626,9.10186631,82.799,82.7,6.23509248]
[1771427179627,9.10186631,82.799,82.74,6.23509248]
[1771427179826,9.10186631,82.799,82.72,6.23509248]
[1771427180332,9.10532673,82.818,82.76,6.23509248]
[1771427180922,10.8724,82.816,82.76,6.23509248]
[1771427181124,9.10532673,82.818,82.76,6.23509248]
[1771427181626,9.10532673,82.818,82.762,10.8793]
[1771427181822,9.10532673,82.818,82.74,6.23509248]
[1771427182128,9.10232165,82.817,82.74,6.23509248]
[1771427182723,6.23509248,82.8,82.732,76.04]
[1771427182926,9.13920621,82.799,82.72,6.23509248]
[1771427183332,9.13920621,82.799,82.746,10.8815]
[1771427183527,9.13920621,82.819,82.74,6.23509248]
[1771427186136,9.11141109,82.815,82.74,6.23509248]
[1771427186532,9.11141109,82.799,82.741,10.8821]
[1771427186738,9.11141109,82.799,82.72,6.23509248]
[1771427187840,9.11494947,82.798,82.749,10.8811]
[1771427188133,9.11494947,82.798,82.72,6.23509248]
[1771427188637,9.11494947,82.796,82.7,6.23509248]
[1771427189338,9.11954526,82.794,82.7,6.23509248]
[1771427189833,9.12258375,82.779,82.7,6.23509248]
[1771427190334,9.12258375,82.76,82.707,10.8866]
[1771427190529,9.12258375,82.786,82.7,6.23509248]
[1771427190935,9.16926639,82.784,82.701,36.26]
[1771427191240,9.16926639,82.784,82.7,6.23509248]
[1771427191632,9.16926639,82.784,82.72,6.23509248]
[1771427192735,9.16926639,82.784,82.739,10.8824]
[1771427193734,10.8768,82.783,82.739,10.8824]
[1771427194040,9.16926639,82.784,82.739,10.8824]
[1771427194740,9.16926639,82.784,82.71,6.23509248]
[1771427195535,9.16926639,82.784,82.732,10.8833]
[1771427195839,9.1691086,82.769,82.7,6.23509248]
[1771427196035,9.1691086,82.769,82.69,6.23509248]
[1771427196229,9.1691086,82.769,82.719,10.8849]
[1771427197240,9.16226905,82.761,82.69,6.23509248]
[1771427197627,6.23509248,82.77,82.702,10.8873]
[1771427197628,20.04618979,82.749,82.702,10.8873]
[1771427197828,9.16508979,82.748,82.702,10.8873]
[1771427198240,9.16508979,82.746,82.691,10.8887]
[1771427198634,9.16508979,82.746,82.67,6.23509248]
[1771427198830,9.12795021,82.744,82.67,6.23509248]
[1771427199039,85.20795021,82.744,82.67,6.23509248]
[1771427199235,9.12795021,82.744,82.67,6.23509248]
[1771427199435,9.12795021,82.744,82.699,10.8876]
[1771427199737,9.12795021,82.744,82.67,6.23509248]
[1771427199938,9.13060538,82.733,82.687,10.8892]
[1771427200241,9.13060538,82.733,82.66,6.26426836]
[1771427200443,6.26426836,82.74,82.68,6.26426836]
[1771427200737,9.13060538,82.751,82.68,6.26426836]
[1771427201338,20.02807224,82.75,82.708,10.8864]
[1771427201935,9.14707224,82.75,82.708,10.8864]
[1771427202538,76.1,82.768,82.681,36.26]
[1771427202737,9.14970086,82.767,82.682,36.26]
[1771427203141,9.09198128,82.764,82.707,10.8866]
[1771427203336,9.09198128,82.764,82.684,97.8792]
[1771427203646,9.09198128,82.764,82.7,6.26426836]
[1771427203941,9.09440542,82.784,82.7,6.26426836]
[1771427204141,9.09440542,82.784,82.701,76.1]
[1771427204335,9.09440542,82.784,82.702,76.1]
[1771427204743,9.09440542,82.784,82.72,6.26426836]
[1771427205340,10.8778,82.775,82.728,10.8838]
[1771427205640,9.09440542,82.784,82.713,76.1]
[1771427205848,9.09440542,82.784,82.7,6.26426836]
[1771427206042,9.09440542,82.784,82.701,76.1]
[1771427206540,9.11264967,82.769,82.725,10.8842]
[1771427206735,9.1428719,82.784,82.72,6.26426836]
[1771427206945,9.1428719,82.784,82.756,10.8802]
[1771427208038,15.40951558,82.8,82.756,10.8802]
[1771427208235,15.40951558,82.8,82.748,10.8812]
[1771427208236,9.14524722,82.799,82.748,10.8812]
[1771427208536,6.26426836,82.8,82.701,58.0347]
[1771427208537,9.14524722,82.797,82.703,76.1]
[1771427208740,10.8775,82.777,82.703,76.1]
[1771427208938,9.14872582,82.779,82.737,10.8826]
[1771427209140,9.14872582,82.779,82.703,76.1]
[1771427210037,9.15104934,82.773,82.683,21.7794]
[1771427210245,9.15104934,82.759,82.68,6.26426836]
[1771427210740,9.15109247,82.739,82.663,21.7849]
[1771427210939,9.15109247,82.739,82.66,6.26426836]
[1771427211139,20.03349247,82.739,82.66,6.26426836]
[1771427211446,6.26426836,82.74,82.66,6.26426836]
[1771427211447,9.15109247,82.738,82.66,6.26426836]
[1771427211844,9.15109247,82.738,82.693,10.8884]
[1771427212144,9.15109247,82.738,82.66,6.26426836]
[1771427212342,9.15109247,82.738,82.66,82.36426836]
[1771427212549,9.15335816,82.737,82.66,6.26426836]
[1771427213347,20.03615816,82.737,82.687,10.8893]
[1771427213547,8.91427835,82.763,82.68,6.26426836]
[1771427213746,8.91427835,82.759,82.68,6.26426836]
[1771427213948,8.91599572,82.745,82.675,76.1]
[1771427214143,8.91599572,82.745,82.67,6.26426836]
[1771427214344,8.91599572,82.745,82.671,76.12]
[1771427214544,8.91599572,82.745,82.709,10.8863]
[1771427215149,8.93574315,82.762,82.69,6.26426836]
[1771427215350,8.93574315,82.762,82.691,76.12]
[1771427215550,8.93574315,82.779,82.691,76.12]
[1771427215748,8.93574315,82.778,82.724,10.8843]
[1771427216444,19.81645744,82.766,82.699,76.12]
[1771427216848,8.95120288,82.765,82.699,76.12]
[1771427217049,8.95120288,82.765,82.722,10.8847]
[1771427217648,8.95290151,82.76,82.712,10.886]
[1771427218353,8.95290151,82.757,82.703,10.8871]
[1771427218854,8.95332277,82.737,82.642,22.04035803]
[1771427219057,8.95332277,82.737,82.651,76.12]
[1771427219352,8.95332277,82.735,82.651,76.12]
[1771427219746,10.8843,82.725,82.676,10.8907]
[1771427220148,8.95332277,82.735,82.651,76.12]
[1771427220452,19.83815807,82.733,82.684,10.8896]
[1771427220649,8.95495807,82.732,82.684,10.8896]
[1771427220851,8.95495807,82.732,82.651,76.12]
[1771427221056,8.95411183,82.749,82.66,6.26426836]
[1771427221255,8.95411183,82.747,82.66,6.26426836]
[1771427221452,8.95411183,82.747,82.705,10.8869]
[1771427221859,8.95570529,82.766,82.7,6.26426836]
[1771427223357,8.95570529,82.766,82.726,10.8841]
[1771427223754,8.85696625,82.784,82.735,10.8829]
[1771427224755,8.85696625,82.784,82.72,6.26426836]
[1771427225143,6.26426836,82.8,82.753,10.8805]
[1771427225357,323.49509843,82.814,82.74,6.26426836]
[1771427225758,8.97384238,82.839,82.76,6.26426836]
[1771427226053,8.97384238,82.834,82.773,10.8779]
[1771427226255,8.97384238,82.834,82.76,6.26426836]
[1771427226751,8.92473029,82.831,82.781,10.8769]
[1771427227147,8.92473029,82.831,82.76,6.26426836]
[1771427227346,15.18899865,82.85,82.78,6.26426836]
[1771427227752,8.92473029,82.85,82.78,6.26426836]
[1771427228056,8.92473029,82.85,82.78,82.36426836]
[1771427228254,8.92615198,82.849,82.77,76.1]
[1771427228455,8.92615198,82.849,82.78,6.26426836]
[1771427229256,8.92615198,82.849,82.802,10.8741]
[1771427229458,8.92615198,82.849,82.78,6.26426836]
[1771427229856,8.92615198,82.849,82.76,6.26426836]
[1771427230061,8.92193215,82.829,82.76,6.26426836]
[1771427230252,10.8719,82.82,82.75,10.8809]
[1771427230458,10.8719,82.82,82.74,6.26426836]
[1771427230459,8.92193215,82.819,82.74,82.36426836]
[1771427230858,8.92453767,82.816,82.758,10.8799]
[1771427231361,8.92453767,82.816,82.74,6.26426836]
[1771427231963,8.92453767,82.816,82.77,10.8783]
[1771427232354,8.92453767,82.816,82.741,76.1]
[1771427232550,8.92453767,82.816,82.74,6.26426836]
[1771427233057,8.92453767,82.816,82.741,76.08]
[1771427233855,8.90095993,82.809,82.74,82.34426836]